bitfinex/quotes_ETHUSD_20230117
["timestamp","ask_amount","ask_price","bid_price","bid_amount"]
[1673939501200,0.51062241,1563.9,1563.8,18.90596407]
[1673939501796,0.51062241,1563.9,1563.8,15.786109]
[1673939503064,0.51062241,1563.9,1563.8,18.90273307]
[1673939504854,0.51062241,1563.9,1563.8,20.70557603]
[1673939505068,0.51062241,1563.9,1563.8,25.08346825]
[1673939507568,0.51062241,1563.9,1563.8,24.24155864]
[1673939510871,0.15499319,1564.0,1563.8,25.08314285]
[1673939511081,0.15499319,1564.0,1563.9,4.91922502]
[1673939511341,0.15499319,1564.0,1563.9,20.70976502]
[1673939511555,0.15499319,1564.0,1563.9,25.78976234]
[1673939512712,1.23004219,1564.3,1563.9,32.48675755]
[1673939512880,1.23004219,1564.3,1564.2,1.471]
[1673939513094,1.23004219,1564.3,1564.2,30.15978407]
[1673939513394,1.23004219,1564.3,1564.2,33.15978407]
[1673939513664,1.23004219,1564.3,1564.2,36.48236248]
[1673939515559,1.23004219,1564.3,1564.2,25.29574407]
[1673939521666,1.23004219,1564.3,1564.2,26.76674407]
[1673939522573,1.23004219,1564.3,1564.2,25.29574407]
[1673939523823,1.23004219,1564.3,1564.1,6.45913]
[1673939524038,1.23004219,1564.3,1564.1,6.39313]
[1673939524039,2.18900421,1564.3,1564.1,6.39313]
[1673939524263,2.18600421,1564.3,1564.1,6.39313]
[1673939524920,1.0,1564.2,1564.1,6.39313]
[1673939525447,3.12847666,1564.2,1564.1,6.39313]
[1673939525657,1.0,1564.2,1564.1,9.39313]
[1673939525871,4.79039706,1564.2,1564.0,0.066]
[1673939526038,0.01939403,1564.1,1563.9,6.39394]
[1673939526627,2.37585769,1564.1,1563.8,6.46039]
[1673939526785,1.20329175,1564.1,1563.8,6.39439]
[1673939527210,1.20329175,1564.1,1563.9,3.0]
[1673939533638,2.36592554,1564.1,1563.9,3.0]
[1673939534016,1.20329175,1564.1,1563.9,3.0]
[1673939534681,1.20329175,1564.1,1563.9,2.99738707]
[1673939537735,0.24939403,1564.1,1563.9,9.39163707]
[1673939537938,0.01939403,1564.1,1563.9,15.78590707]
[1673939538148,0.95389772,1564.2,1563.9,18.01053578]
[1673939538406,2.11667784,1564.2,1563.9,18.01053578]
[1673939540526,0.95389772,1564.1,1563.9,15.78590707]
[1673939540900,0.95389772,1564.1,1563.9,9.39163707]
[1673939541103,2.11667784,1564.1,1563.9,9.39163707]
[1673939546136,2.11667784,1564.1,1563.9,2.99738707]
[1673939548202,0.95389772,1564.1,1563.9,2.99738707]
[1673939548676,0.95689772,1564.1,1563.9,2.99738707]
[1673939548886,2.11672376,1564.1,1563.9,2.99738707]
[1673939553375,0.95389772,1564.1,1563.9,2.99738707]
[1673939553754,2.1167828,1564.1,1563.9,2.99738707]
[1673939556286,0.95389772,1564.1,1563.9,9.39157707]
[1673939556684,2.11760212,1564.1,1563.9,9.39157707]
[1673939557149,0.95389772,1564.1,1563.9,9.39157707]
[1673939557491,2.40728065,1564.2,1563.9,9.39157707]
[1673939558087,0.95389772,1564.1,1563.9,9.39157707]
[1673939558644,2.11794033,1564.1,1563.9,9.39157707]
[1673939561370,0.95389772,1564.1,1563.9,9.39157707]
[1673939561799,2.11781137,1564.1,1563.9,9.39157707]
[1673939562419,2.11781137,1564.0,1563.9,9.39157707]
[1673939562748,2.11781137,1564.0,1563.9,9.80909019]
[1673939566488,2.11781137,1564.0,1563.9,9.39157707]
[1673939570506,2.11781137,1564.0,1563.9,9.80910767]
[1673939578999,2.45588662,1564.1,1563.9,21.04262955]
[1673939579215,2.45588662,1564.1,1563.9,20.62509895]
[1673939579216,2.38788662,1564.1,1563.9,20.62509895]
[1673939579781,3.55334078,1564.1,1563.9,20.62509895]
[1673939580266,0.95389772,1564.1,1564.0,0.41735018]
[1673939580829,2.11910372,1564.1,1564.0,13.20507018]
[1673939580980,2.11910372,1564.1,1564.0,16.20507018]
[1673939582702,2.11910372,1564.1,1564.0,15.78772]
[1673939590563,2.11910372,1564.1,1564.0,16.20504723]
[1673939591350,2.11910372,1564.1,1564.0,3.0]
[1673939592590,2.11910372,1564.1,1564.0,16.20502691]
[1673939593920,2.11610764,1564.1,1564.0,18.56723065]
[1673939597820,2.11610764,1564.1,1564.0,16.20502691]
[1673939598499,0.95090164,1564.1,1564.0,9.39386]
[1673939598806,2.11610764,1564.1,1564.0,9.39386]
[1673939600658,3.55009654,1564.1,1564.0,9.39386]
[1673939602041,2.11610764,1564.1,1564.0,9.39386]
[1673939602905,2.5991949,1564.1,1564.0,9.39386]
[1673939603837,2.39013809,1564.1,1564.0,9.39386]
[1673939604072,3.55534409,1564.1,1564.0,9.39386]
[1673939604542,2.5991949,1564.1,1564.0,3.0]
[1673939604968,4.48541566,1564.1,1563.9,3.066]
[1673939605176,4.48541566,1564.1,1563.9,3.0]
[1673939605177,0.95610884,1564.0,1563.9,3.0]
[1673939605692,2.12131484,1564.0,1563.9,3.0]
[1673939607226,3.55530374,1564.0,1563.9,3.0]
[1673939607648,2.12131484,1564.0,1563.9,3.0]
[1673939612220,0.95610884,1564.0,1563.9,3.0]
[1673939612462,2.12131484,1564.0,1563.9,3.0]
[1673939614338,2.12131484,1564.0,1563.8,0.066]
[1673939614585,1.43379787,1563.9,1563.6,1.02282047]
[1673939614808,1.18523963,1563.8,1563.4,8.85411958]
[1673939614945,1.18523963,1563.8,1563.5,0.17172556]
[1673939615158,0.95523963,1563.7,1563.4,7.41499047]
[1673939615383,0.95523963,1563.7,1563.4,6.39617]
[1673939615681,2.36359625,1563.7,1563.4,6.39617]
[1673939616311,2.38299028,1563.7,1563.4,6.39617]
[1673939616632,0.01939403,1563.7,1563.5,9.39572]
[1673939617258,0.01939403,1563.7,1563.5,3.0]
[1673939617469,3.38189056,1563.7,1563.5,3.0]
[1673939617731,1.97463366,1563.7,1563.4,3.066]
[1673939617949,0.92070527,1563.5,1563.4,3.0]
[1673939619061,0.00370527,1563.5,1563.4,3.0]
[1673939619265,0.00370527,1563.5,1563.4,15.96437901]
[1673939620116,0.00370527,1563.5,1563.4,21.63314132]
[1673939620558,0.00370527,1563.5,1563.4,18.51651725]
[1673939621203,0.00370527,1563.5,1563.4,19.74351725]
[1673939622773,0.00048933,1563.5,1563.4,19.74351725]
[1673939623598,0.00048933,1563.5,1563.4,23.81696179]
[1673939623936,0.00048933,1563.5,1563.4,24.72443473]
[1673939624988,0.00048933,1563.5,1563.4,23.76761426]
[1673939627350,0.00048933,1563.5,1563.4,22.86014132]
[1673939628009,0.00048933,1563.5,1563.4,23.58177945]
[1673939628449,0.00048933,1563.5,1563.4,22.86014132]
[1673939629042,0.00048933,1563.5,1563.4,23.58173248]
[1673939629625,0.00048933,1563.5,1563.4,22.35473248]
[1673939629839,2.363,1563.8,1563.5,0.00187045]
[1673939629987,1.99791042,1563.9,1563.6,12.79098]
[1673939630198,1.92991042,1563.9,1563.6,12.79098]
[1673939632325,2.92991042,1563.9,1563.6,6.39549]
[1673939632670,4.36370829,1563.9,1563.5,6.46356045]
[1673939632838,2.36135956,1563.8,1563.5,0.00187045]
[1673939633195,0.01939403,1563.7,1563.5,0.00187045]
[1673939634249,1.01939403,1563.7,1563.5,0.00187045]
[1673939634474,1.218,1563.6,1563.5,0.00187045]
[1673939634789,3.64105902,1563.6,1563.5,0.00187045]
[1673939636114,1.218,1563.6,1563.5,0.00187045]
[1673939636923,2.68880368,1563.7,1563.5,0.00187045]
[1673939637134,0.97463366,1563.7,1563.5,0.00187045]
[1673939638470,0.97463366,1563.7,1563.5,6.39774045]
[1673939638632,0.01939403,1563.7,1563.5,12.79364045]
[1673939640323,0.01939403,1563.7,1563.5,14.71919949]
[1673939641925,0.068,1563.8,1563.5,17.83582356]
[1673939642095,0.95527676,1563.9,1563.5,25.45872356]
[1673939642298,0.95527676,1563.9,1563.7,6.39508]
[1673939642513,0.95527676,1563.9,1563.7,19.18524]
[1673939648134,0.95527676,1563.9,1563.7,22.30186407]
[1673939648345,0.95527676,1563.9,1563.8,3.11662407]
[1673939648557,0.95527676,1563.9,1563.8,17.33213957]
[1673939648795,0.95527676,1563.9,1563.8,23.72680957]
[1673939648955,0.95527676,1563.9,1563.8,24.42274817]
[1673939649430,0.95527676,1563.9,1563.8,22.19874817]
[1673939649750,0.95527676,1563.9,1563.8,23.66774817]
[1673939650377,0.95527676,1563.9,1563.8,22.97180957]
[1673939651184,0.95527676,1563.9,1563.8,23.71178383]
[1673939652123,0.95252716,1563.9,1563.8,22.97180957]
[1673939652548,0.95252716,1563.9,1563.8,23.71163593]
[1673939653197,0.95252716,1563.9,1563.8,23.71464851]
[1673939655585,0.95252716,1563.9,1563.8,25.22001504]
[1673939656264,0.95252716,1563.9,1563.8,24.26319457]
[1673939656639,0.95252716,1563.9,1563.8,26.65514415]
[1673939658206,0.95252716,1563.9,1563.8,25.22001504]
[1673939658679,0.95252716,1563.9,1563.8,24.03319457]
[1673939659265,0.95252716,1563.9,1563.8,24.99001504]
[1673939659832,0.95252716,1563.9,1563.8,25.22001504]
[1673939660093,7.16e-06,1563.9,1563.8,26.65514415]
[1673939660284,1.23004219,1564.3,1563.9,1.0]
[1673939660459,1.23004219,1564.3,1564.0,29.02174407]
[1673939660671,1.23004219,1564.3,1564.1,6.11662407]
[1673939660924,1.23004219,1564.3,1564.2,19.17912]
[1673939661114,1.23004219,1564.3,1564.2,22.17912]
[1673939665742,1.23004219,1564.3,1564.2,25.29574407]
[1673939666142,1.23004219,1564.3,1564.2,29.29321968]
[1673939666312,1.23004219,1564.3,1564.2,29.52321968]
[1673939666925,1.23004219,1564.3,1564.2,31.53276574]
[1673939667250,0.1606258,1564.4,1564.3,1.0]
[1673939667451,0.1606258,1564.4,1564.3,22.22732702]
[1673939667785,0.1606258,1564.4,1564.3,29.16781836]
[1673939667941,0.1606258,1564.4,1564.3,25.42475134]
[1673939668146,0.1606258,1564.4,1564.3,28.54137541]
[1673939671259,0.1606258,1564.4,1564.3,32.28444243]
[1673939671633,0.1606258,1564.4,1564.3,28.54137541]
[1673939672663,0.1606258,1564.4,1564.3,28.5595332]
[1673939673447,0.1606258,1564.4,1564.3,27.3295332]
[1673939673771,0.1606258,1564.4,1564.3,18.90188407]
[1673939674815,0.1606258,1564.4,1564.3,19.13188407]
[1673939675712,0.1606258,1564.4,1564.3,18.90188407]
[1673939677629,0.1606258,1564.4,1564.3,20.93658792]
[1673939677873,0.1606258,1564.4,1564.3,21.16658792]
[1673939678086,0.1606258,1564.4,1564.3,26.61684227]
[1673939679354,0.1606258,1564.4,1564.3,26.38684227]
[1673939679514,0.1606258,1564.4,1564.3,24.91884227]
[1673939681960,0.1606258,1564.4,1564.3,25.14884227]
[1673939682267,0.1606258,1564.4,1564.3,24.58213842]
[1673939682684,0.1606258,1564.4,1564.3,25.14884227]
[1673939683688,0.1606258,1564.4,1564.3,24.91884227]
[1673939686245,0.1606258,1564.4,1564.3,19.46858792]
[1673939690865,0.15740351,1564.4,1564.3,19.46858792]
[1673939693019,0.15740351,1564.4,1564.3,19.69453494]
[1673939694549,0.15740351,1564.4,1564.3,20.45685992]
[1673939695225,0.15740351,1564.4,1564.3,20.4543217]
[1673939695560,0.15740351,1564.4,1564.3,25.92903148]
[1673939696113,0.15740351,1564.4,1564.3,25.1667065]
[1673939696366,0.15740351,1564.4,1564.3,25.92931624]
[1673939697256,0.15740351,1564.4,1564.3,25.1667065]
[1673939697533,0.15740351,1564.4,1564.3,25.92950896]
[1673939698061,0.15740351,1564.4,1564.3,16.57537265]
[1673939698217,1.07440351,1564.4,1564.3,15.78272178]
[1673939700776,0.15740351,1564.4,1564.3,15.78272178]
[1673939700988,0.15740351,1564.4,1564.3,19.12592806]
[1673939704255,0.15740351,1564.4,1564.3,20.08274853]
[1673939707660,0.15740351,1564.4,1564.3,30.78449708]
[1673939707932,0.15740351,1564.4,1564.3,32.0536534]
[1673939708245,0.15740351,1564.4,1564.3,32.62035725]
[1673939708464,0.15740351,1564.4,1564.3,34.53265229]
[1673939709345,0.15740351,1564.4,1564.3,32.62035725]
[1673939709923,0.15740351,1564.4,1564.3,34.76265229]
[1673939710455,0.15740351,1564.4,1564.3,34.19594844]
[1673939710663,0.15740351,1564.4,1564.3,34.76265229]
[1673939713300,0.15740351,1564.4,1564.3,33.32752318]
[1673939713448,0.15740351,1564.4,1564.3,34.76425627]
[1673939714032,0.15740351,1564.4,1564.3,32.85196123]
[1673939714606,0.15740351,1564.4,1564.3,32.28525738]
[1673939715194,0.15740351,1564.4,1564.3,33.24310235]
[1673939717156,0.15740351,1564.4,1564.3,31.80636926]
[1673939717664,0.15740351,1564.4,1564.3,33.24310235]
[1673939718242,0.15499319,1564.5,1564.4,1.0]
[1673939718450,0.15499319,1564.5,1564.4,25.97474826]
[1673939718603,0.15499319,1564.5,1564.4,28.86768098]
[1673939719454,0.15499319,1564.5,1564.4,30.30402187]
[1673939720555,0.15499319,1564.5,1564.4,28.86768098]
[1673939721441,0.15499319,1564.5,1564.4,30.30360322]
[1673939722129,0.14394622,1564.7,1564.4,32.610748]
[1673939722283,0.14394622,1564.7,1564.6,5.54280316]
[1673939722656,0.14394622,1564.7,1564.6,36.33745786]
[1673939722818,0.14394622,1564.7,1564.6,37.91494055]
[1673939723039,0.14394622,1564.7,1564.6,38.3482367]
[1673939723463,0.14394622,1564.7,1564.6,36.91246806]
[1673939723679,0.14394622,1564.7,1564.6,40.06065435]
[1673939723891,0.14394622,1564.7,1564.6,39.06065435]
[1673939725077,0.14394622,1564.7,1564.6,40.52965435]
[1673939725223,0.14394622,1564.7,1564.6,41.96542299]
[1673939725433,0.17233385,1564.8,1564.6,45.70849001]
[1673939725644,0.17233385,1564.8,1564.7,11.90703207]
[1673939725966,0.17233385,1564.8,1564.7,25.51056118]
[1673939726297,0.17233385,1564.8,1564.7,25.27353797]
[1673939726760,0.17233385,1564.8,1564.7,24.68903207]
[1673939727419,0.16551348,1564.9,1564.7,31.43778408]
[1673939727592,0.16551348,1564.9,1564.8,6.48698469]
[1673939727943,0.16551348,1564.9,1564.8,22.49816469]
[1673939728115,0.16551348,1564.9,1564.8,23.84564738]
[1673939729401,0.16551348,1564.9,1564.8,23.08267059]
[1673939730454,0.16551348,1564.9,1564.8,23.95730293]
[1673939731373,0.16551348,1564.9,1564.8,23.08267059]
[1673939732263,0.16551348,1564.9,1564.8,23.95698477]
[1673939732988,0.51615354,1564.9,1564.8,23.95698477]
[1673939734206,0.51615354,1564.9,1564.8,25.42598477]
[1673939735327,0.006,1565.2,1564.8,39.26134683]
[1673939735480,1.03261565,1565.5,1565.1,31.61206407]
[1673939735706,1.03261565,1565.5,1565.4,20.63242]
[1673939735945,1.03261565,1565.5,1565.4,23.81104407]
[1673939736099,1.03261565,1565.5,1565.4,29.08254997]
[1673939736306,0.005,1565.6,1565.5,1.0]
[1673939736581,0.005,1565.6,1565.5,21.59108407]
[1673939736582,0.01,1565.6,1565.5,21.59108407]
[1673939736767,0.18452323,1565.7,1565.5,22.23758997]
[1673939736932,0.18452323,1565.7,1565.6,4.81062407]
[1673939737146,0.18452323,1565.7,1565.6,21.16976997]
[1673939737382,0.18452323,1565.7,1565.6,24.73289297]
[1673939740083,0.18452323,1565.7,1565.6,24.14838707]
[1673939740718,0.18452323,1565.7,1565.6,24.73289297]
[1673939741978,0.18452323,1565.7,1565.6,24.50289297]
[1673939742195,0.18452323,1565.7,1565.6,24.73289297]
[1673939742401,0.18452323,1565.7,1565.6,24.50289297]
[1673939742609,0.18452323,1565.7,1565.6,23.91838707]
[1673939744779,0.002,1566.1,1565.8,0.15568703]
[1673939744936,0.0066214,1566.4,1565.9,19.7232]
[1673939745155,0.0066214,1566.4,1566.3,19.15341]
[1673939745394,0.0066214,1566.4,1566.3,22.33603407]
[1673939745594,0.0066214,1566.4,1566.3,25.33603407]
[1673939745780,0.0066214,1566.4,1566.3,28.45414338]
[1673939746859,0.9236214,1566.4,1566.3,25.92053997]
[1673939747054,0.9236214,1566.4,1566.3,3.066]
[1673939747250,0.9236214,1566.4,1566.2,0.066]
[1673939747462,0.01939403,1566.3,1566.0,6.45133]
[1673939747672,0.01939403,1566.3,1566.0,15.95364407]
[1673939747932,0.01939403,1566.3,1566.1,3.11662407]
[1673939748101,0.01939403,1566.3,1566.2,6.38488]
[1673939748316,0.9236214,1566.4,1566.2,6.45088]
[1673939748525,0.0066214,1566.4,1566.3,3.11662407]
[1673939748741,0.0066214,1566.4,1566.3,9.50109407]
[1673939748990,0.0066214,1566.4,1566.3,15.95156407]
[1673939749159,0.0066214,1566.4,1566.3,18.95156407]
[1673939749949,0.0066214,1566.4,1566.3,19.53606997]
[1673939750094,0.0066214,1566.4,1566.3,22.06971438]
[1673939750303,0.0066214,1566.4,1566.3,19.53606997]
[1673939750787,0.0066214,1566.4,1566.3,18.95156407]
[1673939756201,0.0066214,1566.4,1566.3,12.56709407]
[1673939756415,0.9236214,1566.4,1566.3,3.066]
[1673939756689,0.9236214,1566.4,1566.3,3.0]
[1673939757037,0.9236214,1566.4,1566.3,9.38447]
[1673939757254,0.9236214,1566.4,1566.3,6.45047]
[1673939758557,0.0066214,1566.4,1566.3,9.45047]
[1673939759363,0.9236214,1566.4,1566.3,9.45047]
[1673939760172,0.917,1566.4,1566.3,9.45047]
[1673939761238,0.20391726,1566.5,1566.3,9.44847]
[1673939761239,0.20591726,1566.5,1566.3,9.44847]
[1673939761449,0.18452323,1566.5,1566.3,9.45047]
[1673939761719,0.18452323,1566.5,1566.4,3.0]
[1673939765181,0.18452323,1566.5,1566.4,15.76812]
[1673939765334,0.18452323,1566.5,1566.4,18.95074407]
[1673939766006,0.18452323,1566.5,1566.4,22.06877138]
[1673939768315,0.18452323,1566.5,1566.4,19.53524997]
[1673939768716,0.18452323,1566.5,1566.4,3.066]
[1673939768940,0.18452323,1566.5,1566.3,6.45044]
[1673939770164,0.18452323,1566.5,1566.4,3.0]
[1673939770372,0.18452323,1566.5,1566.3,6.45044]
[1673939770373,0.20391726,1566.5,1566.3,0.066]
[1673939770586,2.469,1566.4,1566.1,0.066]
[1673939770800,1.467,1566.2,1566.0,6.44773717]
[1673939771052,1.48639403,1566.2,1566.0,6.44973717]
[1673939772119,1.48639403,1566.2,1566.1,3.0]
[1673939772538,1.535,1566.4,1566.1,3.0]
[1673939772751,1.535,1566.4,1566.1,12.50190407]
[1673939772752,1.469,1566.4,1566.1,12.50190407]
[1673939772919,1.469,1566.4,1566.2,9.50142407]
[1673939773131,17.85092323,1566.5,1566.2,15.95068124]
[1673939773538,9.42442323,1566.5,1566.3,6.11662407]
[1673939773754,0.25052323,1566.5,1566.4,15.88474407]
[1673939774010,0.18452323,1566.5,1566.4,18.94912124]
[1673939779014,0.18140589,1566.5,1566.4,18.94912124]
[1673939783336,0.18140589,1566.5,1566.4,19.51095415]
[1673939783604,0.18140589,1566.5,1566.4,22.93496951]
[1673939783774,0.18140589,1566.5,1566.4,22.3731366]
[1673939784596,0.18140589,1566.5,1566.4,22.93505102]
[1673939785445,0.18140589,1566.5,1566.4,22.3731366]
[1673939786292,0.18140589,1566.5,1566.4,22.94034993]
[1673939787138,0.18140589,1566.5,1566.4,22.3731366]
[1673939787876,0.18140589,1566.5,1566.4,22.94031287]
[1673939788066,0.18140589,1566.5,1566.4,22.94031593]
[1673939788707,5.89e-06,1566.5,1566.4,28.62383305]
[1673939788908,0.0088855,1566.7,1566.5,1.0]
[1673939789122,0.0088855,1566.7,1566.6,28.74962407]
[1673939789465,0.0088855,1566.7,1566.6,29.04400124]
[1673939789680,0.0088855,1566.7,1566.6,32.04400124]
[1673939791215,0.0088855,1566.7,1566.6,31.81400124]
[1673939794445,0.0088855,1566.7,1566.6,32.04400124]
[1673939795157,0.0088855,1566.7,1566.6,31.81400124]
[1673939795944,0.0088855,1566.7,1566.6,25.43075124]
[1673939796152,0.9258855,1566.7,1566.6,25.33075124]
[1673939797056,0.9258855,1566.7,1566.6,25.32875124]
[1673939797237,0.9258855,1566.7,1566.6,25.33075124]
[1673939798672,0.9258855,1566.7,1566.6,3.06437717]
[1673939798941,2.41427953,1566.7,1566.5,0.06437717]
[1673939799092,1.469,1566.6,1566.5,3.0]
[1673939802244,1.471,1566.6,1566.5,3.0]
[1673939802450,1.469,1566.6,1566.5,3.0]
[1673939803399,3.43276944,1566.6,1566.4,0.06437717]
[1673939803632,3.85642662,1566.6,1566.4,3.0]
[1673939803833,1.469,1566.5,1566.4,3.0]
[1673939804042,2.42262875,1566.5,1566.3,6.44844717]
[1673939804295,2.42262875,1566.5,1566.3,0.06437717]
[1673939804540,1.469,1566.4,1566.3,3.0]
[1673939804759,1.469,1566.4,1566.2,3.06437717]
[1673939804907,1.469,1566.4,1566.2,3.0]
[1673939806277,3.42262875,1566.4,1566.2,3.0]
[1673939806696,3.42262875,1566.4,1566.1,6.44937717]
[1673939807155,1.463,1566.3,1566.1,0.06437717]
[1673939807369,1.463,1566.3,1566.0,12.83551717]
[1673939808056,1.463,1566.3,1566.1,3.0]
[1673939809313,1.463,1566.3,1566.1,2.99693657]
[1673939812503,1.463,1566.3,1566.1,9.38219657]
[1673939812798,1.463,1566.3,1566.1,9.44657374]
[1673939813377,0.01939403,1566.4,1566.1,15.83185374]
[1673939814430,0.01939403,1566.4,1566.1,18.94847781]
[1673939815258,20.07262875,1566.6,1566.2,1.0]
[1673939815586,20.07262875,1566.6,1566.3,12.76879]
[1673939815762,20.07262875,1566.6,1566.3,12.83316717]
[1673939815975,2.48862875,1566.6,1566.3,12.83316717]
[1673939816183,1.469,1566.6,1566.3,12.83316717]
[1673939816842,2.42262875,1566.6,1566.3,12.83316717]
[1673939817008,2.42262875,1566.6,1566.3,17.87157596]
[1673939817226,1.469,1566.6,1566.3,17.87157596]
[1673939818715,12.23911212,1566.7,1566.3,17.87157596]
[1673939820101,10.77011212,1566.7,1566.3,17.87157596]
[1673939821515,9.33631425,1566.7,1566.3,17.87157596]
[1673939822168,10.77011212,1566.7,1566.3,17.87157596]
[1673939823146,10.77011212,1566.7,1566.3,17.86957596]
[1673939823307,9.33631425,1566.7,1566.3,17.87157596]
[1673939825936,1.02851425,1566.7,1566.4,3.11662407]
[1673939826261,0.96251425,1566.7,1566.6,6.38325]
[1673939826581,0.0088855,1566.7,1566.6,15.94750124]
[1673939827217,0.0088855,1566.7,1566.6,21.18059236]
[1673939828251,0.0088855,1566.7,1566.6,23.22247548]
[1673939828508,0.0088855,1566.7,1566.6,23.45247548]
[1673939829183,0.0088855,1566.7,1566.6,21.98347548]
[1673939830759,0.0088855,1566.7,1566.6,21.41059236]
[1673939831285,0.0088855,1566.7,1566.6,21.18059236]
[1673939831658,0.0088855,1566.7,1566.6,18.94750124]
[1673939833994,0.0088855,1566.7,1566.6,18.94403057]
[1673939836729,0.9258855,1566.7,1566.6,12.56078057]
[1673939837103,1.87951425,1566.7,1566.6,3.06437717]
[1673939837313,2.82809718,1566.7,1566.6,3.0]
[1673939837822,2.82809718,1566.7,1566.5,6.44774717]
[1673939838033,1.87951425,1566.7,1566.5,6.44774717]
[1673939838277,0.9258855,1566.7,1566.5,6.44774717]
[1673939838701,1.87951425,1566.7,1566.5,6.44774717]
[1673939839251,0.9258855,1566.7,1566.5,6.44774717]
[1673939839567,0.0088855,1566.7,1566.5,6.44774717]
[1673939840080,0.0088855,1566.7,1566.5,12.83139717]
[1673939841563,0.0088855,1566.7,1566.6,3.11662407]
[1673939841732,0.0088855,1566.7,1566.6,18.88312407]
[1673939841945,0.0088855,1566.7,1566.6,18.94750124]
[1673939843721,0.0088855,1566.7,1566.6,21.48058836]
[1673939848243,0.0088855,1566.7,1566.6,18.94750124]
[1673939852332,0.0088855,1566.7,1566.6,12.56425124]
[1673939853131,0.0088855,1566.7,1566.6,9.44762717]
[1673939855731,0.0088855,1566.7,1566.6,3.06437717]
[1673939855945,0.96251425,1566.7,1566.6,3.0]
[1673939856271,6.80620982,1566.7,1566.5,0.06437717]
[1673939856506,4.76891085,1566.6,1566.2,0.06437717]
[1673939856674,3.36483938,1566.5,1566.1,23.53948319]
[1673939856883,3.36483938,1566.5,1566.1,17.15445319]
[1673939856884,2.41489435,1566.5,1566.1,17.15445319]
[1673939857093,2.41489435,1566.5,1566.1,16.08996717]
[1673939857469,2.41489435,1566.5,1566.1,17.15445319]
[1673939858042,3.84729775,1566.5,1566.1,17.15445319]
[1673939858291,2.41489435,1566.5,1566.1,16.08996717]
[1673939858711,2.41489435,1566.5,1566.2,3.0]
[1673939858712,2.41789435,1566.4,1566.2,3.0]
[1673939859459,0.95489435,1566.4,1566.2,3.0]
[1673939859786,0.95489435,1566.4,1566.1,3.06437717]
[1673939859787,1.90478324,1566.4,1566.1,3.06437717]
[1673939859991,1.92417727,1566.4,1566.1,3.0]
[1673939860142,0.97428838,1566.4,1566.1,3.0]
[1673939861370,0.97428838,1566.4,1566.1,2.99610286]
[1673939862202,0.066,1566.5,1566.1,18.88326693]
[1673939862345,1.02345677,1566.6,1566.2,3.74577899]
[1673939862571,0.00256242,1566.6,1566.3,15.88540407]
[1673939862946,0.00256242,1566.6,1566.4,15.88441407]
[1673939863090,0.18708565,1566.6,1566.4,6.44811717]
[1673939863304,0.95745677,1566.6,1566.4,0.06437717]
[1673939863506,0.95745677,1566.6,1566.3,6.44876717]
[1673939863507,1.90687204,1566.6,1566.3,6.44876717]
[1673939864389,1.90687204,1566.6,1566.3,12.83323717]
[1673939864571,0.00256242,1566.6,1566.4,6.11662407]
[1673939864785,0.00256242,1566.6,1566.5,12.7673]
[1673939865001,0.00256242,1566.6,1566.5,15.83167717]
[1673939867122,0.00256242,1566.6,1566.5,18.94830124]
[1673939868518,0.00256242,1566.6,1566.5,19.57723274]
[1673939868670,0.00256242,1566.6,1566.5,25.12843918]
[1673939868863,0.00256242,1566.6,1566.5,24.6376342]
[1673939869073,0.00256242,1566.6,1566.5,23.43581958]
[1673939869320,0.00256242,1566.6,1566.5,22.86293646]
[1673939869530,0.00256242,1566.6,1566.5,23.50400409]
[1673939872300,0.00256242,1566.6,1566.5,23.50200409]
[1673939872514,0.00256242,1566.6,1566.5,23.50400409]
[1673939872816,0.00256242,1566.6,1566.5,22.86293646]
[1673939875357,0.00256242,1566.6,1566.5,23.50433777]
[1673939875936,0.00256242,1566.6,1566.5,24.07722089]
[1673939876400,0.00256242,1566.6,1566.5,25.15013751]
[1673939877884,0.00256242,1566.6,1566.5,26.6073387]
[1673939877885,2.42e-06,1566.6,1566.5,26.6073387]
[1673939880069,2.42e-06,1566.6,1566.5,25.53422089]
[1673939880702,2.42e-06,1566.6,1566.5,24.31993646]
[1673939881262,2.42e-06,1566.6,1566.5,22.86293646]
[1673939883141,0.0088855,1566.7,1566.5,22.86293646]
[1673939883295,0.0088855,1566.7,1566.6,18.88312407]
[1673939883504,0.0088855,1566.7,1566.6,18.94750124]
[1673939883769,0.9258855,1566.7,1566.6,9.44762717]
[1673939884138,0.9258855,1566.7,1566.6,0.06437717]
[1673939884351,0.9258855,1566.7,1566.5,6.44602717]
[1673939884352,1.88077985,1566.7,1566.5,6.44602717]
[1673939884558,1.88077985,1566.7,1566.5,6.44802717]
[1673939884974,0.9258855,1566.7,1566.5,6.44802717]
[1673939885662,0.0088855,1566.7,1566.6,3.0]
[1673939886396,0.96377985,1566.7,1566.6,18.88312407]
[1673939886612,0.0088855,1566.7,1566.6,18.94750124]
[1673939887600,0.0088855,1566.7,1566.6,19.52038436]
[1673939900552,0.0088855,1566.7,1566.6,20.16269273]
[1673939900768,0.0088855,1566.7,1566.6,19.58980961]
[1673939901133,0.0088855,1566.7,1566.6,23.63959861]
[1673939901285,0.0088855,1566.7,1566.6,24.71397651]
[1673939901706,0.00541005,1566.7,1566.6,27.13129575]
[1673939902384,5e-08,1566.7,1566.6,28.56099171]
[1673939902613,5e-08,1566.7,1566.6,28.21810859]
[1673939902912,5e-08,1566.7,1566.6,27.36129575]
[1673939905598,5e-08,1566.7,1566.6,27.13129575]
[1673939908461,5e-08,1566.7,1566.6,28.56837534]
[1673939908674,5e-08,1566.7,1566.6,27.61267247]
[1673939908886,5e-08,1566.7,1566.6,27.84267247]
[1673939909684,5e-08,1566.7,1566.6,29.75496751]
[1673939910108,5e-08,1566.7,1566.6,27.84267247]
[1673939910370,5e-08,1566.7,1566.6,28.79832735]
[1673939911375,5e-08,1566.7,1566.6,28.56832735]
[1673939912212,5e-08,1566.7,1566.6,27.13863139]
[1673939912897,5e-08,1566.7,1566.6,26.56574827]
[1673939915358,5e-08,1566.7,1566.6,27.99544423]
[1673939916136,5e-08,1566.7,1566.6,26.56574827]
[1673939916471,3.47200285,1567.1,1566.8,0.00199995]
[1673939916472,1.0847051,1567.1,1566.8,0.00199995]
[1673939916683,1.0847051,1567.1,1566.9,22.26268407]
[1673939916893,1.0847051,1567.1,1567.0,6.11662407]
[1673939917067,1.0847051,1567.1,1567.0,19.94424124]
[1673939917835,1.0847051,1567.1,1567.0,18.94424124]
[1673939923447,1.18667288,1567.3,1567.1,1.084]
[1673939923679,1.17889729,1567.5,1567.2,7.79406732]
[1673939923820,0.004,1567.4,1567.3,3.8960308]
[1673939924026,0.22482838,1567.5,1567.3,20.59934494]
[1673939924240,0.22482838,1567.5,1567.4,3.11662407]
[1673939924558,0.22482838,1567.5,1567.4,21.00882494]
[1673939924803,8.38e-06,1567.5,1567.4,21.07320211]